[Event "SRB-chT Men 1st League 2019"]
[Site "Subotica"]
[Date "2019.08.29"]
[Round "8.3"]
[White "Miladinovic, Igor"]
[Black "Damljanovic, Branko"]
[Result "1-0"]
[ECO "A45"]
[WhiteElo "2532"]
[BlackElo "2483"]
[Annotator "ChessBase"]
[PlyCount "65"]
[EventDate "2019.08.23"]
[EventType "team-tourn"]
[EventCountry "SRB"]
[SourceTitle "playchess.com"]
[Source "ChessBase"]
[SourceQuality "1"]
[TimeControl "40/5400+30:1800+30"]

1. d4 {[%emt 0:00:00]} Nf6 {[%emt 0:00:09]} 2. Bg5 {[%emt 0:00:00]} c5 {[%emt 0:00:44]} 3. Nc3 {[%emt 0:07:18]} cxd4 {[%emt 0:05:13]} 4. Qxd4 {[%emt 0:00:16]} Nc6 {[%emt 0:01:51]} 5. Qh4 {[%emt 0:00:29]} e6 {[%emt 0:08:21]} 6. e4 {[%emt 0:04:41]} h6 {[%emt 0:02:41]} 7. O-O-O {[%emt 0:14:41]} a6 {[%emt 0:09:25]} 8. f4 {[%emt 0:09:51]} Rg8 {[%emt 0:14:04]} 9. Bxf6 {[%emt 0:00:28]} Qxf6 {[%emt 0:01:19]} 10. Qf2 {[%emt 0:00:26]} g5 {[%emt 0:10:25]} 11. g3 {[%emt 0:00:09]} Be7 {[%emt 0:07:21]} 12. Nge2 {[%emt 0:04:56]} d6 {[%emt 0:01:31]} 13. Bh3 {[%emt 0:07:01]} gxf4 {[%emt 0:18:33]} 14. gxf4 {[%emt 0:03:41]} Bd7 {[%emt 0:00:09]} 15. Qb6 {[%emt 0:04:22]} Qh4 {[%emt 0:00:23]} 16. Rd3 {[%emt 0:02:02]} Bd8 {[%emt 0:01:39]} 17. Qxb7 {[%emt 0:02:07]} Rb8 {[%emt 0:02:57]} 18. Qxa6 {[%emt 0:01:40]} Nb4 {[%emt 0:00:10]} 19. Qxd6 {[%emt 0:00:06]} Nxd3+ {[%emt 0:00:04]} 20. Qxd3 {[%emt 0:00:11]} Bc7 {[%emt 0:03:29]} 21. Rf1 {[%emt 0:01:39]} Rd8 {[%emt 0:05:59]} 22. Qf3 {[%emt 0:00:44]} Bc6 {[%emt 0:00:41]} 23. Qe3 {[%emt 0:00:56]} Bb7 {[%emt 0:00:40]} 24. Kb1 {[%emt 0:00:41]} Ba6 {[%emt 0:00:24]} 25. a4 {[%emt 0:00:58]} Bb6 {[%emt 0:02:07]} 26. Qxb6 {[%emt 0:08:38]} Bxe2 {[%emt 0:00:15]} 27. Qc6+ {[%emt 0:00:05]} Kf8 {[%emt 0:00:10]} 28. Qc5+ {[%emt 0:00:11]} Ke8 {[%emt 0:00:26]} 29. Nxe2 {[%emt 0:00:48]} Qxh3 {[%emt 0:00:02]} 30. Ng3 {[%emt 0:00:53]} h5 {[%emt 0:02:04]} 31. Ka2 {[%emt 0:01:45]} Rh8 {[%emt 0:00:48]} 32. Rf3 {[%emt 0:03:03]} f6 {[%emt 0:00:02]} 33. Nf5 {[%emt 0:00:22]} 1-0

[Event "SRB-chT Men 1st League 2019"]
[Site "Subotica"]
[Date "2019.08.29"]
[Round "8.4"]
[White "Tadic, Branko"]
[Black "Miljkovic, Miroslav D"]
[Result "1-0"]
[ECO "D06"]
[WhiteElo "2488"]
[BlackElo "2483"]
[Annotator "ChessBase"]
[PlyCount "145"]
[EventDate "2019.08.23"]
[EventType "team-tourn"]
[EventCountry "SRB"]
[SourceTitle "playchess.com"]
[Source "ChessBase"]
[SourceQuality "1"]
[TimeControl "40/5400+30:1800+30"]

1. Nf3 {[%emt 0:04:59]} d5 {[%emt 0:00:00]} 2. d4 {[%emt 0:00:17]} Bf5 {[%emt 0:00:01]} 3. c4 {[%emt 0:01:06]} e6 {[%emt 0:00:07]} 4. Nc3 {[%emt 0:05:14]} Nc6 {[%emt 0:00:34]} 5. Bf4 {[%emt 0:02:19]} Bd6 {[%emt 0:00:18]} 6. Bxd6 {[%emt 0:05:57]} Qxd6 {[%emt 0:00:18]} 7. cxd5 {[%emt 0:11:13]} exd5 {[%emt 0:00:11]} 8. e3 {[%emt 0:00:16]} Nf6 {[%emt 0:02:03]} 9. Rc1 {[%emt 0:01:05]} O-O {[%emt 0:03:35]} 10. a3 {[%emt 0:03:38]} a6 {[%emt 0:03:20]} 11. Be2 {[%emt 0:01:23]} Ne7 {[%emt 0:05:58]} 12. Nh4 {[%emt 0:07:07]} c6 {[%emt 0:07:53]} 13. Na4 {[%emt 0:05:59]} Ne4 {[%emt 0:08:52]} 14. Nc5 {[%emt 0:01:19]} Nxc5 {[%emt 0:10:28]} 15. Rxc5 {[%emt 0:06:13]} Qf6 {[%emt 0:01:01]} 16. g3 {[%emt 0:01:37]} Nc8 {[%emt 0:03:50]} 17. Nxf5 {[%emt 0:05:57]} Qxf5 {[%emt 0:00:24]} 18. Bd3 {[%emt 0:00:05]} Qf6 {[%emt 0:01:33]} 19. Qh5 {[%emt 0:02:51]} g6 {[%emt 0:04:18]} 20. Qh6 {[%emt 0:02:02]} Re8 {[%emt 0:01:50]} 21. O-O {[%emt 0:01:21]} Nd6 {[%emt 0:00:57]} 22. b4 {[%emt 0:02:44]} Ne4 {[%emt 0:18:53]} 23. Rc2 {[%emt 0:00:18]} Re6 {[%emt 0:03:23]} 24. a4 {[%emt 0:03:41]} Qe7 {[%emt 0:11:11]} 25. Rb1 {[%emt 0:03:38]} Nd6 {[%emt 0:03:39]} 26. Rc5 {[%emt 0:04:37]} Rd8 {[%emt 0:05:28]} 27. b5 {[%emt 0:00:51]} axb5 {[%emt 0:00:05]} 28. axb5 {[%emt 0:00:05]} Nxb5 {[%emt 0:00:43]} 29. Bxb5 {[%emt 0:01:04]} cxb5 {[%emt 0:00:01]} 30. Rcxb5 {[%emt 0:00:51]} Rd7 {[%emt 0:00:11]} 31. Qf4 {[%emt 0:00:58]} Kg7 {[%emt 0:00:05]} 32. Qf3 {[%emt 0:02:44]} Rf6 {[%emt 0:00:16]} 33. Qd1 {[%emt 0:00:39]} Rc6 {[%emt 0:01:39]} 34. Qf3 {[%emt 0:02:54]} Rf6 {[%emt 0:01:07]} 35. Qg2 {[%emt 0:03:02]} Rfd6 {[%emt 0:00:54]} 36. h4 {[%emt 0:01:37]} h5 {[%emt 0:00:05]} 37. R1b2 {[%emt 0:00:35]} Kh7 {[%emt 0:00:51]} 38. Kh2 {[%emt 0:00:51]} Kg7 {[%emt 0:00:13]} 39. Qh1 {[%emt 0:00:16]} g5 {[%emt 0:00:34]} 40. hxg5 {[%emt 0:00:00]} Qxg5 {[%emt 0:00:00]} 41. Qg2 {[%emt 0:09:58]} Rg6 {[%emt 0:02:39]} 42. Rxb7 {[%emt 0:00:32]} Rxb7 {[%emt 0:03:15]} 43. Rxb7 {[%emt 0:00:05]} h4 {[%emt 0:00:02]} 44. g4 {[%emt 0:01:02]} Qxg4 {[%emt 0:00:32]} 45. Qxg4 {[%emt 0:00:15]} Rxg4 {[%emt 0:00:05]} 46. Kh3 {[%emt 0:00:14]} Rg5 {[%emt 0:00:49]} 47. Kxh4 {[%emt 0:02:17]} Rg2 {[%emt 0:00:04]} 48. Rb2 {[%emt 0:00:42]} Kf6 {[%emt 0:00:09]} 49. Kh3 {[%emt 0:00:05]} Rg1 {[%emt 0:01:06]} 50. Kh2 {[%emt 0:02:05]} Rg8 {[%emt 0:00:13]} 51. Rb1 {[%emt 0:00:24]} Ke6 {[%emt 0:01:57]} 52. Rg1 {[%emt 0:00:37]} Rh8+ {[%emt 0:00:18]} 53. Kg2 {[%emt 0:00:12]} Rg8+ {[%emt 0:00:57]} 54. Kf1 {[%emt 0:00:04]} Rh8 {[%emt 0:00:42]} 55. Ke2 {[%emt 0:00:06]} f6 {[%emt 0:00:27]} 56. Ra1 {[%emt 0:00:30]} Rh3 {[%emt 0:01:32]} 57. Ra6+ {[%emt 0:01:10]} Ke7 {[%emt 0:00:07]} 58. Kf1 {[%emt 0:00:12]} Rh1+ {[%emt 0:02:48]} 59. Kg2 {[%emt 0:00:08]} Rh5 {[%emt 0:01:08]} 60. Kg3 {[%emt 0:00:07]} Rg5+ {[%emt 0:01:09]} 61. Kf4 {[%emt 0:00:12]} Rg2 {[%emt 0:00:26]} 62. Ra2 {[%emt 0:08:17]} Ke6 {[%emt 0:00:14]} 63. e4 {[%emt 0:02:21]} dxe4 {[%emt 0:00:33]} 64. Kxe4 {[%emt 0:00:03]} Rg4+ {[%emt 0:05:42]} 65. Ke3 {[%emt 0:00:43]} Rg1 {[%emt 0:01:03]} 66. Ra6+ {[%emt 0:03:13]} Ke7 {[%emt 0:02:04]} 67. Ke4 {[%emt 0:00:50]} Re1+ {[%emt 0:09:48]} 68. Kf5 {[%emt 0:01:13]} Rd1 {[%emt 0:01:11]} 69. Re6+ {[%emt 0:00:24]} Kd7 {[%emt 0:00:04]} 70. Re4 {[%emt 0:00:04]} Rd3 {[%emt 0:00:22]} 71. f4 {[%emt 0:00:11]} Kd6 {[%emt 0:01:29]} 72. Kxf6 {[%emt 0:00:08]} Kd5 {[%emt 0:00:55]} 73. Re8 {[%emt 0:00:05]} 1-0

[Event "SRB-chT Men 1st League 2019"]
[Site "Subotica"]
[Date "2019.08.29"]
[Round "8.5"]
[White "Lazic, Miroljub"]
[Black "Nestorovic, Nikola"]
[Result "1-0"]
[ECO "A12"]
[WhiteElo "2387"]
[BlackElo "2468"]
[Annotator "ChessBase"]
[PlyCount "107"]
[EventDate "2019.08.23"]
[EventType "team-tourn"]
[EventCountry "SRB"]
[SourceTitle "playchess.com"]
[Source "ChessBase"]
[SourceQuality "1"]
[TimeControl "40/5400+30:1800+30"]

1. Nf3 {[%emt 1:30:30]} d5 {[%emt 1:30:30]} 2. b3 {[%emt 0:00:30]} Bg4 {[%emt 0:00:30]} 3. e3 {[%emt 0:00:30]} Nf6 {[%emt 0:00:30]} 4. Bb2 {[%emt 0:00:30]} e6 {[%emt 0:00:30]} 5. h3 {[%emt 0:00:30]} Bh5 {[%emt 0:00:30]} 6. Be2 {[%emt 0:00:30]} Nbd7 {[%emt 0:00:30]} 7. c4 {[%emt 0:00:30]} c6 {[%emt 0:00:30]} 8. d3 {[%emt 0:00:30]} h6 {[%emt 0:00:30]} 9. Nbd2 {[%emt 0:00:30]} Bd6 {[%emt 0:00:30]} 10. d4 {[%emt 0:00:30]} Bg6 {[%emt 0:00:30]} 11. O-O {[%emt 0:00:30]} O-O {[%emt 0:00:30]} 12. Ne5 {[%emt 0:00:30]} Bh7 {[%emt 0:00:30]} 13. Bd3 {[%emt 0:00:30]} Bxd3 {[%emt 0:00:30]} 14. Nxd3 {[%emt 0:00:30]} a5 {[%emt 0:00:30]} 15. Qc2 {[%emt 0:00:30]} a4 {[%emt 0:00:30]} 16. Ne5 {[%emt 0:00:30]} Bb4 {[%emt 0:00:30]} 17. Nxd7 {[%emt 0:00:30]} Qxd7 {[%emt 0:00:30]} 18. Bc3 {[%emt 0:00:30]} Qe7 {[%emt 0:00:30]} 19. Rfb1 {[%emt 0:00:30]} a3 {[%emt 0:00:30]} 20. Rc1 {[%emt 0:00:30]} Bd6 {[%emt 0:00:30]} 21. Rab1 {[%emt 0:00:30]} e5 {[%emt 0:00:30]} 22. c5 {[%emt 0:00:30]} Bc7 {[%emt 0:00:30]} 23. dxe5 {[%emt 0:00:30]} Nd7 {[%emt 0:00:30]} 24. Bd4 {[%emt 0:00:30]} Bxe5 {[%emt 0:00:30]} 25. Nf3 {[%emt 0:00:30]} Bxd4 {[%emt 0:00:30]} 26. exd4 {[%emt 0:00:30]} Qf6 {[%emt 0:00:30]} 27. b4 {[%emt 0:00:30]} g5 {[%emt 0:00:30]} 28. Re1 {[%emt 0:00:30]} Rfe8 {[%emt 0:00:30]} 29. Qd2 {[%emt 0:00:30]} Re4 {[%emt 0:00:30]} 30. Rb3 {[%emt 0:00:30]} Qf4 {[%emt 0:00:30]} 31. Qxf4 {[%emt 0:00:30]} gxf4 {[%emt 0:00:30]} 32. b5 {[%emt 0:00:30]} Ra4 {[%emt 0:00:30]} 33. bxc6 {[%emt 0:00:30]} bxc6 {[%emt 0:00:30]} 34. Kf1 {[%emt 0:00:30]} Rxe1+ {[%emt 0:00:30]} 35. Kxe1 {[%emt 0:00:30]} Kf8 {[%emt 0:00:30]} 36. Kd2 {[%emt 0:00:30]} Ke7 {[%emt 0:00:30]} 37. Kd3 {[%emt 0:00:30]} Kd8 {[%emt 0:00:30]} 38. Ne1 {[%emt 0:00:30]} Nf8 {[%emt 0:00:30]} 39. Nc2 {[%emt 0:00:30]} Ne6 {[%emt 0:00:30]} 40. Rxa3 {[%emt 0:00:30]} Rxa3+ {[%emt 0:00:30]} 41. Nxa3 {[%emt 0:30:30]} f3 {[%emt 0:30:30]} 42. g3 {[%emt 0:00:30]} Ng5 {[%emt 0:00:30]} 43. Ke3 {[%emt 0:00:30]} Nxh3 {[%emt 0:00:30]} 44. Kxf3 {[%emt 0:00:30]} Ng5+ {[%emt 0:00:30]} 45. Ke3 {[%emt 0:00:30]} Ne4 {[%emt 0:00:30]} 46. Nc2 {[%emt 0:00:30]} Nc3 {[%emt 0:00:30]} 47. Nb4 {[%emt 0:00:30]} Kc7 {[%emt 0:00:30]} 48. g4 {[%emt 0:00:30]} f6 {[%emt 0:00:30]} 49. f3 {[%emt 0:00:30]} Kd7 {[%emt 0:00:30]} 50. Kd3 {[%emt 0:00:30]} Nb5 {[%emt 0:00:30]} 51. a4 {[%emt 0:00:30]} Na7 {[%emt 0:00:30]} 52. Nc2 {[%emt 0:00:30]} f5 {[%emt 0:00:30]} 53. Ne3 {[%emt 0:00:30]} fxg4 {[%emt 0:00:30]} 54. Nxg4 {[%emt 0:00:30]} 1-0

[Event "SRB-chT Men 1st League 2019"]
[Site "Subotica"]
[Date "2019.08.29"]
[Round "8.6"]
[White "Ostojic, Nikola"]
[Black "Laketic, Gojko"]
[Result "0-1"]
[ECO "A07"]
[WhiteElo "2432"]
[BlackElo "2376"]
[Annotator "NA"]
[PlyCount "39"]
[EventDate "2019.08.23"]
[EventType "team-tourn"]
[EventCountry "SRB"]
[SourceTitle "playchess.com"]
[Source "ChessBase"]
[SourceQuality "1"]
[TimeControl "40/5400+30:1800+30"]

1. Nf3 {[%emt 0:02:48]} d5 {[%emt 0:00:04]} 2. g3 {[%emt 0:00:38]} c6 {[%emt 0:01:51]} 3. Bg2 {[%emt 0:00:05]} Bg4 {[%emt 0:00:44]} 4. d3 {[%emt 0:00:18]} Nd7 {[%emt 0:01:12]} 5. Nbd2 {[%emt 0:00:31]} e6 {[%emt 0:00:46]} 6. O-O {[%emt 0:00:18]} Ngf6 {[%emt 0:03:53]} 7. h3 {[%emt 0:01:27]} Bh5 {[%emt 0:01:18]} 8. Qe1 {[%emt 0:00:50]} Bb4 {[%emt 0:14:31]} 9. a3 {[%emt 0:07:39]} Ba5 {[%emt 0:00:12]} 10. b4 {[%emt 0:33:53]} Bc7 {[%emt 0:01:12]} 11. Bb2 {[%emt 0:00:29]} O-O {[%emt 0:00:25]} 12. e4 {[%emt 0:00:16]} Nb6 {[%emt 0:10:37]} 13. a4 {[%emt 0:24:12]} a5 {[%emt 0:02:24]} 14. Nb3 {[%emt 0:08:50]} dxe4 {[%emt 0:13:20]} 15. dxe4 {[%emt 0:00:08]} axb4 {[%emt 0:05:11]} 16. g4 {[%emt 0:10:10]} Bg6 {[%emt 0:01:40]} 17. a5 {[%emt 0:00:03]} Nc4 {[%emt 0:14:49]} 18. Bxf6 {[%emt 0:00:28]} Qxf6 {[%emt 0:00:13]} 19. Nc5 {[%emt 0:04:14]} Ne5 {[%emt 0:04:14]} 20. Qe3 {[%emt 0:02:43]} 0-1

[Event "SRB-chT Men 1st League 2019"]
[Site "Subotica"]
[Date "2019.08.29"]
[Round "8.8"]
[White "Ratkovic, Miloje"]
[Black "Berkes, Ferenc"]
[Result "0-1"]
[ECO "D30"]
[WhiteElo "2431"]
[BlackElo "2666"]
[Annotator "RC"]
[PlyCount "90"]
[EventDate "2019.08.23"]
[EventType "team-tourn"]
[EventCountry "SRB"]
[SourceTitle "playchess.com"]
[Source "ChessBase"]
[SourceQuality "1"]
[TimeControl "40/5400+30:1800+30"]

1. d4 {[%emt 0:03:56]} d5 {[%emt 0:00:00]} 2. c4 {[%emt 0:00:40]} e6 {[%emt 0:00:10]} 3. Nf3 {[%emt 0:00:12]} Nf6 {[%emt 0:00:28]} 4. e3 {[%emt 0:00:09]} a6 {[%emt 0:01:25]} 5. Nbd2 {[%emt 0:00:37]} c5 {[%emt 0:01:09]} 6. b3 {[%emt 0:00:40]} cxd4 {[%emt 0:01:10]} 7. exd4 {[%emt 0:00:19]} Nc6 {[%emt 0:00:48]} 8. Bb2 {[%emt 0:00:32]} g6 {[%emt 0:01:04]} 9. Ne5 {[%emt 0:11:56]} Bg7 {[%emt 0:07:14]} 10. Nxc6 {[%emt 0:05:13]} bxc6 {[%emt 0:00:25]} 11. Ba3 {[%emt 0:01:49]} Ne4 {[%emt 0:15:54]} 12. Nxe4 {[%emt 0:18:33]} Qa5+ {[%emt 0:00:22]} 13. Qd2 {[%emt 0:03:22]} Qxa3 {[%emt 0:00:43]} 14. cxd5 {[%emt 0:00:08]} exd5 {[%emt 0:16:08]} 15. Nc5 {[%emt 0:16:14]} O-O {[%emt 0:00:21]} 16. Be2 {[%emt 0:04:21]} Rb8 {[%emt 0:00:10]} 17. O-O {[%emt 0:04:37]} Rb4 {[%emt 0:00:33]} 18. Qc1 {[%emt 0:05:33]} Qa5 {[%emt 0:02:44]} 19. a3 {[%emt 0:02:31]} Rxd4 {[%emt 0:00:50]} 20. b4 {[%emt 0:00:35]} Qb6 {[%emt 0:00:55]} 21. Ra2 {[%emt 0:00:54]} Re8 {[%emt 0:06:11]} 22. Rc2 {[%emt 0:06:33]} Bf5 {[%emt 0:02:45]} 23. Ra2 {[%emt 0:00:02]} h5 {[%emt 0:02:19]} 24. Nb3 {[%emt 0:03:30]} Rde4 {[%emt 0:05:15]} 25. Bd3 {[%emt 0:00:01]} Rxb4 {[%emt 0:05:03]} 26. axb4 {[%emt 0:00:56]} Bxd3 {[%emt 0:00:06]} 27. Re1 {[%emt 0:00:44]} Rxe1+ {[%emt 0:00:29]} 28. Qxe1 {[%emt 0:00:02]} Bc4 {[%emt 0:00:10]} 29. Ra3 {[%emt 0:01:41]} Bf8 {[%emt 0:06:55]} 30. Nc5 {[%emt 0:00:32]} Bxc5 {[%emt 0:00:40]} 31. bxc5 {[%emt 0:00:06]} Qxc5 {[%emt 0:00:05]} 32. Re3 {[%emt 0:00:15]} d4 {[%emt 0:00:36]} 33. Re8+ {[%emt 0:00:33]} Kg7 {[%emt 0:00:09]} 34. Rd8 {[%emt 0:00:46]} Be6 {[%emt 0:05:12]} 35. h4 {[%emt 0:02:28]} a5 {[%emt 0:03:34]} 36. Qa1 {[%emt 0:03:17]} Qc3 {[%emt 0:00:39]} 37. Qb1 {[%emt 0:00:19]} a4 {[%emt 0:04:20]} 38. Qb8 {[%emt 0:03:24]} d3 {[%emt 0:00:57]} 39. Rh8 {[%emt 0:00:40]} d2 {[%emt 0:08:08]} 40. Qf8+ {[%emt 0:00:00]} Kf6 {[%emt 0:00:00]} 41. Qd8+ {[%emt 0:04:18]} Ke5 {[%emt 0:00:36]} 42. Kh2 {[%emt 0:08:49]} Qd4 {[%emt 0:02:25]} 43. Qa5+ {[%emt 0:08:49]} c5 {[%emt 0:01:18]} 44. Qc7+ {[%emt 0:01:28]} Kf5 {[%emt 0:00:26]} 45. Qd8 {[%emt 0:03:12]} d1=Q {[%emt 0:01:41]} 0-1

[Event "SRB-chT Men 1st League 2019"]
[Site "Subotica"]
[Date "2019.08.29"]
[Round "8.10"]
[White "Popov, Sinisa S"]
[Black "Cabarkapa, Novak"]
[Result "0-1"]
[ECO "E62"]
[WhiteElo "2440"]
[BlackElo "2434"]
[Annotator "NA"]
[PlyCount "94"]
[EventDate "2019.08.23"]
[EventType "team-tourn"]
[EventCountry "SRB"]
[SourceTitle "playchess.com"]
[Source "ChessBase"]
[SourceQuality "1"]
[TimeControl "40/5400+30:1800+30"]

1. d4 {[%emt 0:00:00]} Nf6 {[%emt 0:00:00]} 2. c4 {[%emt 0:00:02]} g6 {[%emt 0:00:00]} 3. Nf3 {[%emt 0:00:20]} Bg7 {[%emt 0:00:03]} 4. g3 {[%emt 0:00:10]} O-O {[%emt 0:00:08]} 5. Bg2 {[%emt 0:00:08]} d6 {[%emt 0:00:05]} 6. O-O {[%emt 0:00:12]} Nc6 {[%emt 0:00:04]} 7. Nc3 {[%emt 0:01:36]} Bg4 {[%emt 0:00:06]} 8. Ne1 {[%emt 0:09:53]} Qc8 {[%emt 0:13:41]} 9. Nc2 {[%emt 0:10:03]} e5 {[%emt 0:11:48]} 10. d5 {[%emt 0:02:46]} Ne7 {[%emt 0:00:57]} 11. f3 {[%emt 0:01:25]} Bd7 {[%emt 0:01:42]} 12. e4 {[%emt 0:06:23]} Ne8 {[%emt 0:06:31]} 13. Be3 {[%emt 0:02:40]} f5 {[%emt 0:00:12]} 14. Qd2 {[%emt 0:07:17]} Nf6 {[%emt 0:08:41]} 15. c5 {[%emt 0:10:16]} Qe8 {[%emt 0:20:46]} 16. Kh1 {[%emt 0:07:33]} Nh5 {[%emt 0:02:40]} 17. Ne2 {[%emt 0:13:54]} Bb5 {[%emt 0:05:12]} 18. Na3 {[%emt 0:00:45]} Ba6 {[%emt 0:00:41]} 19. b3 {[%emt 0:03:28]} f4 {[%emt 0:01:39]} 20. Bf2 {[%emt 0:02:20]} fxg3 {[%emt 0:00:53]} 21. hxg3 {[%emt 0:00:10]} Bh6 {[%emt 0:00:16]} 22. Qc2 {[%emt 0:02:03]} dxc5 {[%emt 0:04:46]} 23. Nc4 {[%emt 0:00:57]} b6 {[%emt 0:00:21]} 24. Qc3 {[%emt 0:03:57]} Bg7 {[%emt 0:02:20]} 25. Rad1 {[%emt 0:01:19]} Nc8 {[%emt 0:00:51]} 26. Bh3 {[%emt 0:00:28]} Nd6 {[%emt 0:00:52]} 27. Be6+ {[%emt 0:00:26]} Kh8 {[%emt 0:00:23]} 28. g4 {[%emt 0:00:20]} Nf4 {[%emt 0:04:12]} 29. Nxf4 {[%emt 0:00:29]} exf4 {[%emt 0:00:16]} 30. e5 {[%emt 0:01:41]} Nxc4 {[%emt 0:00:45]} 31. bxc4 {[%emt 0:00:09]} Bc8 {[%emt 0:00:04]} 32. Rfe1 {[%emt 0:02:12]} Bxe6 {[%emt 0:00:30]} 33. dxe6 {[%emt 0:00:06]} Qxe6 {[%emt 0:02:47]} 34. Bh4 {[%emt 0:01:32]} Rae8 {[%emt 0:00:58]} 35. Bf6 {[%emt 0:01:06]} Kg8 {[%emt 0:04:23]} 36. Kg2 {[%emt 0:01:26]} Qf7 {[%emt 0:02:40]} 37. g5 {[%emt 0:00:33]} Re6 {[%emt 0:00:45]} 38. Rd5 {[%emt 0:04:59]} c6 {[%emt 0:02:22]} 39. Rd3 {[%emt 0:03:04]} Rfe8 {[%emt 0:01:24]} 40. Re4 {[%emt 0:00:00]} h6 {[%emt 0:00:00]} 41. Qd2 {[%emt 0:06:25]} Bxf6 {[%emt 0:04:26]} 42. gxf6 {[%emt 0:01:19]} Rxe5 {[%emt 0:00:29]} 43. Rd8 {[%emt 0:00:08]} R5e6 {[%emt 0:03:43]} 44. Qd3 {[%emt 0:07:15]} Kf8 {[%emt 0:03:39]} 45. Rxe8+ {[%emt 0:15:44]} Qxe8 {[%emt 0:01:27]} 46. Rxf4 {[%emt 0:00:21]} Kf7 {[%emt 0:02:35]} 47. Rh4 {[%emt 0:02:47]} h5 {[%emt 0:01:08]} 0-1

[Event "SRB-chT Men 1st League 2019"]
[Site "Subotica"]
[Date "2019.08.29"]
[Round "8.11"]
[White "Lukovic, Vladimir"]
[Black "Budisavljevic, Luka"]
[Result "1/2-1/2"]
[ECO "B30"]
[WhiteElo "2420"]
[BlackElo "2359"]
[Annotator "NA"]
[PlyCount "87"]
[EventDate "2019.08.23"]
[EventType "team-tourn"]
[EventCountry "SRB"]
[SourceTitle "playchess.com"]
[Source "ChessBase"]
[SourceQuality "1"]
[TimeControl "40/5400+30:1800+30"]

1. e4 {[%emt 1:30:30]} c5 {[%emt 1:30:30]} 2. Nf3 {[%emt 0:00:30]} Nc6 {[%emt 0:00:30]} 3. Bb5 {[%emt 0:00:30]} e6 {[%emt 0:00:30]} 4. O-O {[%emt 0:00:30]} Nge7 {[%emt 0:00:30]} 5. Re1 {[%emt 0:00:30]} a6 {[%emt 0:00:30]} 6. Bxc6 {[%emt 0:00:30]} Nxc6 {[%emt 0:00:30]} 7. d4 {[%emt 0:00:30]} cxd4 {[%emt 0:00:30]} 8. Nxd4 {[%emt 0:00:30]} Qc7 {[%emt 0:00:30]} 9. Nc3 {[%emt 0:00:30]} Bd6 {[%emt 0:00:30]} 10. h3 {[%emt 0:00:30]} O-O {[%emt 0:00:30]} 11. a4 {[%emt 0:00:30]} Nxd4 {[%emt 0:00:30]} 12. Qxd4 {[%emt 0:00:30]} Be5 {[%emt 0:00:30]} 13. Qd3 {[%emt 0:00:30]} b6 {[%emt 0:00:30]} 14. Bd2 {[%emt 0:00:30]} f5 {[%emt 0:00:30]} 15. f4 {[%emt 0:00:30]} Bxf4 {[%emt 0:00:30]} 16. Bxf4 {[%emt 0:00:30]} Qxf4 {[%emt 0:00:30]} 17. Rf1 {[%emt 0:00:30]} Qe5 {[%emt 0:00:30]} 18. exf5 {[%emt 0:00:30]} Qc5+ {[%emt 0:00:30]} 19. Kh1 {[%emt 0:00:30]} Rxf5 {[%emt 0:00:30]} 20. Rxf5 {[%emt 0:00:30]} Qxf5 {[%emt 0:00:30]} 21. Qxf5 {[%emt 0:00:30]} exf5 22. Nd5 {[%emt 0:00:30]} Bb7 {[%emt 0:01:00]} 23. Ne7+ {[%emt 0:00:30]} Kh8 {[%emt 0:00:30]} 24. Nxf5 {[%emt 0:00:30]} Rf8 {[%emt 0:00:30]} 25. Nd6 {[%emt 0:00:30]} Bc6 {[%emt 0:00:30]} 26. Kg1 {[%emt 0:00:30]} Rf4 {[%emt 0:00:30]} 27. b3 {[%emt 0:00:30]} Rd4 {[%emt 0:00:30]} 28. Nc4 {[%emt 0:00:30]} g6 {[%emt 0:00:30]} 29. Re1 {[%emt 0:00:30]} b5 {[%emt 0:00:30]} 30. axb5 {[%emt 0:00:30]} axb5 {[%emt 0:00:30]} 31. Ne5 {[%emt 0:00:30]} Bb7 {[%emt 0:00:30]} 32. Re2 {[%emt 0:00:30]} Kg7 {[%emt 0:00:30]} 33. Kf2 {[%emt 0:00:30]} Rd5 {[%emt 0:00:30]} 34. Nd3 {[%emt 0:00:30]} Kf6 {[%emt 0:00:30]} 35. Ke3 {[%emt 0:00:30]} Rg5 {[%emt 0:00:30]} 36. Rf2+ {[%emt 0:00:30]} Ke7 {[%emt 0:00:30]} 37. g4 {[%emt 0:00:30]} h5 {[%emt 0:00:30]} 38. gxh5 {[%emt 0:00:30]} Rxh5 {[%emt 0:00:30]} 39. Nf4 {[%emt 0:00:30]} Rg5 {[%emt 0:00:30]} 40. Kd4 {[%emt 0:00:30]} Kd6 {[%emt 0:00:30]} 41. Nd3 {[%emt 0:30:30]} Bc6 {[%emt 0:30:30]} 42. c4 {[%emt 0:00:30]} bxc4 {[%emt 0:00:30]} 43. bxc4 {[%emt 0:00:30]} Rh5 {[%emt 0:00:30]} 44. Rf6+ {[%emt 0:00:30] Kd5+ Ke4+ Ke5+} 1/2-1/2

[Event "SRB-chT Men 1st League 2019"]
[Site "Subotica"]
[Date "2019.08.29"]
[Round "8.12"]
[White "Bodiroga, Predrag"]
[Black "Zegarac, Vuk"]
[Result "0-1"]
[ECO "A32"]
[WhiteElo "2330"]
[BlackElo "2310"]
[Annotator "NA"]
[PlyCount "42"]
[EventDate "2019.08.23"]
[EventType "team-tourn"]
[EventCountry "SRB"]
[SourceTitle "playchess.com"]
[Source "ChessBase"]
[SourceQuality "1"]
[TimeControl "40/5400+30:1800+30"]

1. d4 {[%emt 0:00:25]} Nf6 {[%emt 0:00:00]} 2. Nf3 {[%emt 0:01:32]} e6 {[%emt 0:00:00]} 3. c4 {[%emt 0:00:18]} c5 {[%emt 0:00:00]} 4. e3 {[%emt 0:00:57]} cxd4 {[%emt 0:00:04]} 5. Nxd4 {[%emt 0:00:51]} Bb4+ {[%emt 0:02:29]} 6. Bd2 {[%emt 0:01:01]} Be7 {[%emt 0:00:06]} 7. Nc3 {[%emt 0:00:27]} Nc6 {[%emt 0:00:18]} 8. Nf3 {[%emt 0:16:50]} a6 {[%emt 0:05:59]} 9. Be2 {[%emt 0:02:38]} O-O {[%emt 0:01:49]} 10. O-O {[%emt 0:02:50]} Qc7 {[%emt 0:06:23]} 11. Rc1 {[%emt 0:00:35]} b6 {[%emt 0:02:19]} 12. a3 {[%emt 0:01:15]} Bb7 {[%emt 0:01:01]} 13. Qb3 {[%emt 0:03:24]} Na5 {[%emt 0:02:29]} 14. Qa2 {[%emt 0:03:34]} Rac8 {[%emt 0:01:35]} 15. b3 {[%emt 0:08:24]} Ng4 {[%emt 0:02:56]} 16. g3 {[%emt 0:33:17]} Qc6 {[%emt 0:05:00]} 17. h3 {[%emt 0:17:01]} f5 {[%emt 0:08:09]} 18. Rcd1 {[%emt 0:02:43]} Bf6 {[%emt 0:03:38]} 19. Rfe1 {[%emt 0:00:50]} Ne5 {[%emt 0:01:01]} 20. e4 {[%emt 0:00:05]} fxe4 {[%emt 0:00:06]} 21. Nxe5 {[%emt 0:00:57]} Bxe5 {[%emt 0:00:05]} 0-1